bitfinex-derivatives/quotes_ETHF0:USTF0_20250116
["timestamp","ask_amount","ask_price","bid_price","bid_amount"]
[1737040904102,3.2078,3300.9,3300.2,3.25731069]
[1737040904303,0.6061,3301.0,3300.8,0.60612]
[1737040904512,0.60612,3300.8,3300.7,3.25731069]
[1737040904705,0.60612,3300.8,3300.2,3.25731069]
[1737040904706,0.6062,3300.4,3300.2,3.25731069]
[1737040904907,3.2078,3300.8,3300.0,12.742]
[1737040905211,0.60623,3300.2,3300.1,1.455]
[1737040905704,0.6063,3299.8,3299.7,1.455]
[1737040905902,3.8141,3299.8,3299.7,1.455]
[1737040906097,0.6064,3299.3,3299.2,3.25731069]
[1737040906303,3.2078,3299.8,3299.2,4.71231069]
[1737040907109,3.2078,3300.2,3299.7,3.25731069]
[1737040907412,3.2078,3300.2,3299.8,0.6063]
[1737040907605,3.2078,3300.2,3299.7,3.25731069]
[1737040907806,0.6063,3299.9,3299.7,3.86363069]
[1737040908107,0.6063,3299.9,3299.7,3.86362069]
[1737040908507,0.60628,3300.0,3299.8,0.60629]
[1737040908709,0.6063,3299.8,3299.7,3.25731069]
[1737040908903,3.2078,3300.2,3299.8,0.6063]
[1737040909101,0.60625,3300.1,3299.9,1.455]
[1737040909306,3.2078,3300.2,3300.0,0.60626]
[1737040909503,3.2078,3300.2,3299.7,3.25731069]
[1737040909504,3.2078,3300.2,3300.1,1.455]
[1737040909911,3.81403,3300.2,3300.1,1.455]
[1737040910108,3.81403,3300.2,3299.7,3.25731069]
[1737040910415,0.60629,3299.9,3299.8,1.455]
[1737040910800,3.2078,3300.2,3299.8,2.0613]
[1737040911005,0.60629,3299.9,3299.8,1.455]
[1737040911605,0.60629,3299.9,3299.8,2.0613]
[1737040911809,0.60629,3299.9,3299.8,1.455]
[1737040912413,0.60646,3299.0,3298.8,3.25731069]
[1737040912612,0.60645,3299.0,3298.9,1.80563277]
[1737040912816,3.2078,3299.5,3298.9,1.455]
[1737040913007,0.60639,3299.4,3299.2,0.6064]
[1737040913203,3.2078,3299.5,3299.4,0.60638]
[1737040913414,1.0459,3300.1,3299.4,2.99940736]
[1737040913415,3.2078,3299.9,3299.4,2.99940736]
[1737040913620,3.2078,3299.9,3299.8,2.99940736]
[1737040913621,3.81409,3299.9,3299.8,2.99940736]
[1737040913819,3.81409,3299.9,3299.8,4.45440736]
[1737040914615,3.2078,3300.2,3299.8,4.45440736]
[1737040914816,3.81403,3300.2,3300.1,2.99940736]
[1737040915609,0.60629,3299.9,3299.7,2.99940736]
[1737040915914,0.60629,3299.9,3299.8,1.80478601]
[1737040916216,3.2078,3300.2,3299.8,1.80538451]
[1737040916417,3.81403,3300.2,3300.1,3.60565736]
[1737040916712,0.6062,3300.4,3300.1,3.35179187]
[1737040916916,0.60621,3300.3,3300.2,0.35238451]
[1737040917213,0.60618,3300.5,3300.4,0.60619]
[1737040917522,0.60618,3300.5,3300.4,0.35258758]
[1737040917815,0.60615,3300.7,3300.4,0.35258758]
[1737040918017,3.2078,3301.0,3300.5,3.35199494]
[1737040918314,3.2078,3301.0,3300.9,3.60550736]
[1737040918512,1.51476,3302.0,3300.9,9.80499494]
[1737040918513,3.2078,3302.0,3300.9,9.80499494]
[1737040918711,3.2078,3302.0,3301.7,0.60595]
[1737040918712,0.60595,3301.8,3301.7,0.60595]
[1737040918911,3.8137,3302.0,3301.9,2.99940736]
[1737040919116,3.2078,3302.0,3301.9,3.35199494]
[1737040919317,3.8137,3302.0,3301.9,3.95791494]
[1737040919612,3.2078,3302.0,3301.9,3.95791494]
[1737040919813,0.60588,3302.2,3302.0,0.60589]
[1737040920007,0.60588,3302.2,3302.1,3.35199494]
[1737040920216,3.2078,3302.4,3302.1,3.35199494]
[1737040920515,3.81364,3302.4,3302.2,0.35258758]
[1737040920709,3.81364,3302.4,3302.3,0.35258758]
[1737040921518,0.60585,3302.3,3301.8,0.60593]
[1737040921720,3.81363,3302.4,3302.3,1.453]
[1737040921922,1.51463,3302.3,3301.3,3.25592261]
[1737040922220,0.60599,3301.5,3301.4,1.80540967]
[1737040922515,0.60599,3301.5,3301.4,1.80546295]
[1737040922713,3.81375,3301.8,3301.4,5.06138556]
[1737040922909,3.2078,3301.8,3301.5,0.35246295]
[1737040923118,3.2078,3301.8,3301.7,0.60596]
[1737040923416,3.2078,3302.3,3301.7,0.35246295]
[1737040923617,3.81365,3302.3,3302.1,0.60588]
[1737040923818,3.81365,3302.3,3302.2,0.95832295]
[1737040923819,3.2078,3302.3,3302.2,0.95832295]
[1737040924016,3.81365,3302.3,3302.2,0.95832295]
[1737040924224,3.2078,3302.3,3302.2,0.95824601]
[1737040924416,3.81365,3302.3,3302.2,0.35238601]
[1737040924618,3.2078,3302.3,3302.2,0.95824601]
[1737040925922,3.2078,3302.3,3302.2,0.35238601]
[1737040926113,3.2078,3302.3,3302.2,0.35214485]
[1737040926321,3.2078,3302.3,3302.2,0.95800485]
[1737040926514,3.2078,3302.8,3302.7,0.60577]
[1737040926713,3.2078,3302.8,3302.7,2.41076364]
[1737040926912,3.81345,3303.4,3302.7,5.01279364]
[1737040927119,3.2078,3304.1,3303.4,0.60563]
[1737040927325,0.60561,3303.6,3303.5,3.60791625]
[1737040927527,3.2078,3304.1,3303.5,5.06091625]
[1737040927713,3.2078,3304.1,3303.6,0.35199364]
[1737040927919,3.2078,3304.1,3303.7,0.3515131]
[1737040928227,3.2078,3304.1,3303.5,4.70892261]
[1737040928421,2.0323,3304.3,3303.6,0.35112344]
[1737040928726,3.2078,3304.1,3303.7,0.35112344]
[1737040928918,0.60555,3303.9,3303.8,0.35112344]
[1737040929314,3.2078,3304.1,3303.5,4.70892261]
[1737040929522,3.2078,3304.1,3304.0,3.25592261]
[1737040929716,3.81326,3304.5,3304.1,0.60552]
[1737040929927,3.2078,3304.5,3304.3,0.60547]
[1737040930115,3.2078,3304.5,3304.4,2.05746]
[1737040930317,3.2078,3304.5,3304.4,1.452]
[1737040930514,3.2078,3304.9,3304.4,1.452]
[1737040930715,3.81318,3304.9,3304.5,3.86136261]
[1737040931023,3.81317,3304.9,3304.5,3.86136261]
[1737040931318,3.2078,3304.9,3304.8,0.60539]
[1737040931518,3.2078,3305.3,3304.7,3.2078]
[1737040931821,3.81294,3306.2,3305.2,3.2078]
[1737040932025,3.2078,3306.2,3306.0,3.25592261]
[1737040932721,0.60515,3306.1,3306.0,3.25592261]
[1737040932924,0.60518,3306.0,3305.6,0.60524]
[1737040933320,3.2078,3305.8,3305.3,1.452]
[1737040933536,0.60525,3305.6,3305.4,3.25592261]
[1737040933831,0.60525,3305.6,3305.3,2.05728]
[1737040933832,0.60528,3305.4,3305.3,1.452]
[1737040934025,3.2078,3305.4,3305.3,2.0573]
[1737040934226,3.2078,3305.8,3305.3,1.452]
[1737040934428,3.2078,3305.8,3305.4,3.25592261]
[1737040935028,0.6051,3306.4,3306.0,0.60515]
[1737040935225,3.2078,3306.6,3306.0,3.25592261]
[1737040935527,0.60512,3306.3,3306.0,3.25592261]
[1737040935732,0.60508,3306.5,3306.1,0.60515]
[1737040935925,0.60508,3306.5,3306.2,1.452]
[1737040936226,3.81287,3306.6,3306.2,2.05713]
[1737040936622,3.2078,3307.0,3306.5,3.25592261]
[1737040936825,0.60503,3306.8,3306.5,3.25592261]
[1737040937627,3.2078,3307.0,3306.5,3.25592261]
[1737040937822,3.2078,3307.0,3306.1,15.9258]
[1737040938024,0.60513,3306.2,3306.1,12.718]
[1737040938229,0.60513,3306.2,3306.1,14.169]
[1737040938431,3.2078,3306.8,3306.1,14.169]
[1737040938723,3.2078,3306.8,3306.1,17.3768]
[1737040939031,3.2078,3306.8,3306.1,14.77414]
[1737040939222,0.60513,3306.2,3306.1,14.169]
[1737040939524,0.60513,3306.2,3306.1,12.718]
[1737040939823,0.60513,3306.2,3306.1,14.169]
[1737040940027,0.60512,3306.3,3306.1,14.169]
[1737040940327,0.60513,3306.2,3306.1,14.169]
[1737040940527,3.2078,3306.4,3306.1,14.169]
[1737040940729,0.60513,3306.2,3306.1,14.169]
[1737040942827,3.2078,3306.4,3305.0,3.25592261]
[1737040943035,0.60539,3304.8,3304.7,1.451]
[1737040943727,3.2078,3304.9,3304.7,1.451]
[1737040944032,0.6054,3304.8,3304.7,1.451]
[1737040944528,3.2078,3304.9,3304.7,1.451]
[1737040944725,0.60526,3305.5,3305.2,0.60531]
[1737040944925,3.2078,3305.5,3304.8,6.46372261]
[1737040945127,3.2078,3305.5,3304.8,3.25592261]
[1737040945523,0.60529,3305.4,3305.2,0.60531]
[1737040945831,0.6053,3305.3,3305.0,0.60534]
[1737040946130,3.2078,3305.5,3304.9,0.60537]
[1737040946331,0.60528,3305.4,3305.1,0.60532]
[1737040946528,3.2078,3305.5,3305.0,3.2078]
[1737040946529,3.81307,3305.5,3305.0,3.2078]
[1737040946732,3.2078,3306.0,3305.3,3.25592261]
[1737040947230,0.60525,3305.6,3305.4,0.60527]
[1737040947728,3.2078,3306.0,3305.3,3.49878135]
[1737040947932,3.2078,3306.0,3305.5,0.60525]
[1737040948129,0.60522,3305.7,3305.6,1.449]
[1737040948332,0.6052,3305.9,3305.6,0.60523]
[1737040948534,3.2078,3306.0,3305.7,1.449]
[1737040948735,3.81298,3306.0,3305.8,0.6052]
[1737040948935,0.60519,3305.9,3305.7,2.05421]
[1737040949136,0.6052,3305.8,3305.7,1.449]
[1737040950144,3.81298,3306.0,3305.8,0.60519]
[1737040950345,3.81298,3306.0,3305.7,2.05422]
[1737040950346,0.6052,3305.8,3305.7,2.05422]
[1737040950537,3.2078,3306.0,3305.7,1.449]
[1737040950842,0.6052,3305.8,3305.7,1.449]
[1737040951539,3.2078,3306.0,3305.7,1.449]
[1737040951737,0.6052,3305.8,3305.7,1.449]
[1737040953441,0.6052,3305.8,3305.7,4.43695396]
[1737040953846,0.6052,3305.8,3305.7,2.98795396]
[1737040954042,1.51297,3305.9,3305.6,1.449]
[1737040954346,0.60526,3305.5,3305.4,1.449]
[1737040954541,3.81306,3305.5,3305.4,1.449]
[1737040954745,8.2078,3305.5,3304.4,2.98795396]
[1737040955043,0.60542,3304.6,3304.5,1.80010363]
[1737040955634,0.60542,3304.6,3304.5,1.80057403]
[1737040955840,0.60542,3304.6,3304.5,1.449]
[1737040956144,5.0,3304.6,3303.3,3.2078]
[1737040956446,0.60563,3303.5,3303.4,1.80057704]
[1737040956637,3.81343,3303.5,3303.4,1.80057704]
[1737040956940,3.81343,3303.5,3303.4,0.35157704]
[1737040957141,0.60564,3303.4,3303.3,1.449]
[1737040957344,1.58154,3303.4,3303.3,1.449]
[1737040964050,0.60583,3302.4,3302.3,12.712]
[1737040964242,0.60583,3302.4,3302.3,14.162]
[1737040964442,0.60583,3302.4,3302.3,12.712]
[1737040964953,3.81363,3302.4,3302.3,14.162]
[1737040965544,3.81363,3302.4,3302.3,12.712]
[1737040965749,0.60594,3301.8,3301.7,3.2078]
[1737040966047,3.2078,3301.9,3301.2,6.46167013]
[1737040966241,0.606,3301.5,3301.3,1.45]
[1737040966446,0.60601,3301.4,3301.3,1.45]
[1737040966846,0.60601,3301.5,3301.3,1.45]
[1737040967046,3.2078,3301.9,3301.3,1.45]
[1737040967548,0.60599,3301.5,3301.4,1.45]
[1737040967745,3.81379,3301.5,3301.4,1.45]
[1737040968349,3.2078,3301.5,3300.9,1.0194]
[1737040968544,0.60608,3301.1,3301.0,1.45]
[1737040968749,0.60602,3301.4,3301.1,0.60607]
[1737040968950,3.2078,3301.5,3301.0,1.45]
[1737040969148,0.60607,3301.1,3301.0,1.45]
[1737040969350,3.2078,3301.5,3301.0,1.45]
[1737040969546,3.2078,3301.5,3301.3,3.25387013]
[1737040969857,0.60607,3301.1,3301.0,1.45]
[1737040970848,3.81387,3301.1,3301.0,1.45]
[1737040971049,3.81387,3301.1,3300.8,12.717]
[1737040971050,0.6061,3300.9,3300.8,12.717]
[1737040971547,4.72301,3301.1,3300.7,1.45]
[1737040971751,0.60612,3300.8,3300.7,1.45]
[1737040977953,4.72298,3301.1,3299.8,3.25387013]
[1737040977954,0.60628,3300.0,3299.8,3.25387013]
[1737040978154,0.60627,3300.0,3299.9,1.449]
[1737040978349,0.60626,3300.1,3299.9,1.449]
[1737040978548,3.2078,3300.2,3299.9,1.449]
[1737040978948,3.2078,3300.2,3300.0,0.60626]
[1737040979252,3.2078,3300.2,3300.1,0.60625]
[1737040979652,3.2078,3300.6,3300.4,0.60619]
[1737040979954,3.2078,3300.6,3300.1,2.99779095]
[1737040980156,0.60619,3300.4,3300.1,2.99779095]
[1737040980351,3.2078,3300.6,3300.0,2.99779095]
[1737040980648,3.2078,3300.6,3300.1,1.449]
[1737040980848,0.60623,3300.2,3300.1,1.449]
[1737040981446,0.60627,3300.0,3299.9,2.99779095]
[1737040981646,0.60625,3300.2,3299.9,5.05307095]
[1737040981848,3.2078,3300.6,3300.3,0.60621]
[1737040982052,3.2078,3300.6,3300.4,2.99779095]
[1737040982350,3.81397,3300.6,3300.2,2.99779095]
[1737040982550,3.2078,3300.6,3300.4,0.60618]
[1737040982756,0.60619,3300.5,3300.2,2.99779095]
[1737040982951,3.2078,3300.6,3300.2,2.99779095]
[1737040983153,3.2078,3301.4,3300.5,1.51542]
[1737040983351,3.2078,3301.3,3301.0,2.99779095]
[1737040983552,0.60607,3301.1,3301.0,2.99779095]
[1737040983759,0.60607,3301.1,3301.0,1.449]
[1737040986059,3.2078,3301.3,3300.1,2.99779095]
[1737040986356,3.2078,3300.6,3300.4,0.60619]
[1737040986561,3.2078,3301.0,3300.2,4.44679095]
[1737040986758,3.2078,3301.0,3300.8,2.99779095]
[1737040986952,0.6061,3300.9,3300.8,2.99779095]
[1737040987153,0.6061,3300.9,3300.8,3.60390095]
[1737040987453,3.2078,3301.0,3300.9,0.6061]
[1737040988063,3.2078,3301.0,3300.8,2.99779095]
[1737040988357,1.067,3301.6,3300.8,2.99779095]
[1737040988558,1.51506,3301.4,3300.9,1.449]
[1737040988758,0.60608,3301.0,3300.9,1.449]
[1737040988960,0.60616,3300.6,3300.5,3.2078]
[1737040989352,0.60621,3300.3,3300.2,2.99779095]
[1737040989557,0.60621,3300.3,3300.2,4.44679095]
[1737040989758,0.60621,3300.3,3300.2,1.449]
[1737040990064,4.72323,3300.6,3300.1,1.449]
[1737040990366,2.99779095,3300.9,3300.1,1.449]
[1737040990367,3.81403,3300.2,3300.1,1.449]
[1737040990554,0.60636,3299.5,3299.4,12.722]
[1737040990758,1.51563,3300.1,3299.4,14.171]
[1737040990958,1.51563,3300.1,3299.5,0.60635]
[1737040991357,1.51568,3300.0,3299.4,12.722]
[1737040991564,0.60636,3299.5,3299.4,12.722]
[1737040991868,0.60636,3299.5,3299.4,14.171]
[1737040992566,3.2078,3299.6,3299.4,14.171]
[1737040993162,3.2078,3299.6,3299.5,0.60636]
[1737040993471,3.2078,3299.6,3299.4,15.2539]
[1737040993765,3.2078,3299.6,3299.5,0.60636]
[1737040993964,3.2078,3299.6,3299.4,15.86027]
[1737040994165,3.81415,3299.6,3299.4,15.2539]
[1737040994366,3.2078,3299.6,3299.4,15.86027]
[1737040994667,3.2078,3299.6,3299.4,15.86028]
[1737040994867,3.2078,3300.0,3299.4,15.2539]
[1737040995063,3.2078,3300.0,3299.7,2.99779095]
[1737040995268,3.2078,3300.0,3299.7,3.60411095]
[1737040995469,3.2078,3300.4,3299.8,3.2078]
[1737040995666,3.2078,3300.9,3300.1,2.99779095]
[1737040995869,0.60611,3300.9,3300.8,2.99779095]
[1737040996074,0.6061,3300.9,3300.8,2.99779095]
[1737040996268,3.2078,3301.3,3300.8,3.60389095]
[1737040996464,0.60605,3301.2,3300.8,3.60390095]
[1737040996669,0.60608,3301.1,3300.8,2.99779095]
[1737040996873,3.2078,3300.9,3300.5,2.99779095]
[1737040997071,0.60614,3300.7,3300.6,1.449]
[1737040997671,5.0,3300.7,3300.0,1.449]
[1737040997871,3.81405,3300.1,3300.0,1.449]
[1737040998768,3.81405,3300.1,3299.5,1.9925]
[1737040998769,3.2078,3300.1,3299.5,1.9925]
[1737040998971,0.60634,3299.6,3299.5,0.9953]
[1737040999179,0.60634,3299.6,3299.5,2.4443]
[1737041000075,3.2078,3300.1,3299.5,2.4443]
[1737041000275,0.60634,3299.7,3299.5,2.4443]
[1737041000679,0.60634,3299.6,3299.5,2.4443]
[1737041001376,0.60634,3299.6,3299.5,1.449]
[1737041001581,4.72345,3300.1,3299.4,12.722]
[1737041001582,0.60636,3299.5,3299.4,12.722]
[1737041001776,0.60636,3299.5,3299.4,14.171]
[1737041001975,3.2078,3299.7,3299.4,14.171]
[1737041001976,0.60635,3299.6,3299.4,14.171]
[1737041002176,0.60636,3299.5,3299.4,14.171]
[1737041003179,0.60636,3299.5,3298.5,3.2609921]
[1737041003382,3.2078,3299.0,3298.5,3.2609921]
[1737041003576,0.60654,3298.5,3298.4,0.9367]
[1737041003885,0.60654,3298.5,3298.4,1.45]
[1737041005486,3.2078,3298.6,3298.4,1.45]
[1737041005685,3.2078,3299.0,3298.4,1.45]
[1737041006177,3.2078,3299.0,3298.4,2.05656]
[1737041006379,0.60654,3298.6,3298.4,1.45]
[1737041006676,3.2078,3299.2,3298.4,4.6578]
[1737041006879,3.2078,3299.9,3298.9,3.2609921]
[1737041007089,3.2078,3299.5,3298.4,7.9187921]
[1737041007283,3.81424,3299.1,3298.4,7.9187921]
[1737041007492,3.2078,3299.1,3298.9,0.60647]
[1737041007688,3.2078,3299.1,3299.0,0.60645]
[1737041007990,3.2078,3299.1,3298.5,3.2609921]
[1737041008384,3.2078,3299.1,3298.4,3.2078]
[1737041008688,0.6065,3298.8,3298.5,2.05453]
[1737041009083,0.60653,3298.6,3298.5,1.448]
[1737041009786,3.2078,3298.7,3298.0,1.448]
[1737041010194,3.2078,3298.7,3298.2,0.60659]
[1737041010391,3.2078,3298.7,3298.0,1.448]
[1737041010691,3.2078,3298.7,3298.2,0.60658]
[1737041010892,0.60657,3298.4,3298.0,1.448]
[1737041011200,0.60656,3298.4,3298.0,1.448]
[1737041011490,3.2078,3298.7,3298.3,0.60657]
[1737041011689,0.60656,3298.5,3298.3,0.60658]
[1737041011993,3.2078,3298.7,3298.0,1.448]
[1737041012197,3.2078,3298.7,3298.0,4.6558]
[1737041012385,3.2078,3298.7,3298.2,0.60659]
[1737041012386,0.60656,3298.4,3298.2,0.60659]
[1737041012586,0.60653,3298.6,3298.0,4.6558]
[1737041012791,0.60659,3298.3,3298.1,0.60661]
[1737041012987,3.2078,3298.7,3298.0,4.6558]
[1737041013191,3.2078,3298.7,3298.1,4.7775321]
[1737041013396,3.2078,3298.7,3298.1,3.2609921]
[1737041013597,3.2078,3298.7,3298.3,0.60657]
[1737041013795,0.60653,3298.6,3298.4,0.60655]
[1737041014098,0.60659,3298.3,3298.1,0.60661]
[1737041014398,0.60664,3298.0,3297.8,1.59487]
[1737041014593,0.60663,3298.1,3297.9,1.448]
[1737041014896,0.60663,3298.1,3298.0,1.448]
[1737041015094,0.60662,3298.1,3298.0,1.448]
[1737041016201,3.2078,3298.2,3298.1,0.60662]
[1737041016388,3.2078,3298.9,3298.8,0.60649]
[1737041016594,3.47276876,3299.3,3299.2,0.6064]
[1737041016799,3.47276876,3299.3,3298.8,1.448]
[1737041017102,0.60644,3299.1,3298.9,0.60646]
[1737041017401,0.60644,3299.1,3298.8,1.448]
[1737041017402,0.60645,3299.0,3298.8,2.05448]
[1737041017597,0.60647,3298.9,3298.8,1.448]
[1737041018401,3.2078,3299.0,3298.8,1.448]
[1737041018694,3.2078,3299.0,3298.9,0.60647]
[1737041018900,3.2078,3299.4,3299.2,0.60641]
[1737041019198,3.81419,3299.4,3299.2,0.6064]
[1737041019402,0.6064,3299.3,3299.0,0.60643]
[1737041019593,0.6064,3299.3,3299.1,0.60643]
[1737041019898,3.2078,3299.4,3299.3,0.6064]
[1737041020099,0.60638,3299.4,3299.2,0.6064]
[1737041020296,0.60638,3299.4,3298.8,1.69011305]
[1737041020605,3.2078,3299.9,3299.3,0.6064]
[1737041020799,0.60638,3299.4,3299.2,0.60641]
[1737041020999,0.60637,3299.5,3299.3,0.60639]
[1737041021300,0.60641,3299.3,3299.1,0.60642]
[1737041021500,0.60639,3299.4,3299.2,0.60642]
[1737041022200,3.2078,3299.9,3299.1,3.2078]
[1737041022403,0.60628,3300.0,3299.8,0.6063]
[1737041022609,0.60628,3300.0,3299.9,1.448]
[1737041022902,3.2078,3300.4,3299.9,1.448]
[1737041023206,2.33117435,3300.7,3300.1,2.82369165]
[1737041023403,0.60616,3300.6,3300.5,2.82369165]
[1737041023605,2.33117435,3300.7,3300.5,2.82369165]
[1737041023798,0.60616,3300.6,3300.5,2.82369165]
[1737041023998,3.2078,3301.3,3300.5,2.82369165]
[1737041024200,3.2078,3301.3,3300.9,2.82369165]
[1737041024399,2.33117435,3301.5,3301.0,1.448]
[1737041024599,0.60602,3301.4,3301.1,0.60606]
[1737041025004,5.53897435,3301.5,3301.0,1.448]
[1737041025301,5.53897435,3301.5,3301.0,2.05407]
[1737041025505,0.60604,3301.3,3301.0,2.05407]
[1737041025699,3.2078,3301.5,3301.0,1.448]
[1737041026004,3.2078,3301.1,3300.3,2.82369165]
[1737041026208,0.60614,3300.7,3300.5,0.60617]
[1737041026504,3.2078,3301.1,3300.6,0.60615]
[1737041026505,0.60611,3300.9,3300.6,0.60615]
[1737041026902,0.60613,3300.8,3300.5,0.60617]
[1737041027106,0.60608,3301.0,3300.6,0.60614]
[1737041027303,0.60611,3300.9,3300.6,0.60615]
[1737041027504,0.6061,3301.0,3300.7,0.60614]
[1737041027700,3.2078,3301.1,3300.4,1.448]
[1737041027897,0.60611,3300.9,3300.6,0.60616]
[1737041028102,0.60612,3300.8,3300.6,0.60616]
[1737041028299,0.60616,3300.6,3300.4,1.448]
[1737041028501,3.2078,3301.0,3300.5,1.448]
[1737041028906,0.60616,3300.6,3300.5,1.448]
[1737041029415,3.81396,3300.6,3300.5,1.448]
[1737041029910,3.2078,3301.0,3300.8,0.60612]
[1737041030114,3.2078,3301.0,3300.9,0.6061]
[1737041030302,3.2078,3301.0,3300.9,2.82369165]
[1737041030503,3.2078,3301.0,3300.9,3.42979165]
[1737041031311,0.60604,3301.3,3301.0,0.60608]
[1737041031612,2.93718435,3301.4,3301.1,0.60605]
[1737041031812,0.60602,3301.4,3300.9,2.82369165]
[1737041032015,4.8205,3301.5,3301.2,0.60604]
[1737041032312,4.2145,3301.5,3301.3,1.448]
[1737041032813,3.2078,3301.5,3301.3,4.27169165]
[1737041033013,3.2078,3301.5,3301.4,0.60601]
[1737041033212,3.2078,3302.0,3301.3,7.47949165]
[1737041033412,0.60592,3301.9,3301.6,0.60596]
[1737041033616,3.2078,3302.0,3301.3,7.47949165]
[1737041033812,3.2078,3302.0,3301.8,0.60592]
[1737041034312,3.2078,3302.0,3301.9,0.60592]
[1737041034514,2.0307,3302.3,3302.0,0.60589]
[1737041034714,2.0307,3302.3,3302.1,1.447]
[1737041034715,0.60588,3302.2,3302.1,1.447]
[1737041040419,3.2078,3302.4,3302.1,1.447]
[1737041040612,3.2078,3302.4,3302.3,2.82369165]
[1737041040814,3.2078,3302.4,3302.3,3.42954165]
[1737041041014,3.2078,3302.4,3302.3,2.82369165]
[1737041041315,3.2078,3302.4,3302.3,3.42954165]
[1737041041515,0.60579,3302.7,3302.3,2.82369165]
[1737041041712,0.9883,3303.2,3303.1,0.6057]
[1737041041912,1.0056,3303.8,3303.1,1.445]
[1737041042113,1.0056,3303.8,3303.2,2.82369165]
[1737041042914,1.0056,3303.8,3303.1,1.445]
[1737041043819,1.0056,3303.8,3303.3,2.82369165]
[1737041044016,0.60558,3303.8,3303.4,0.60564]
[1737041044222,3.2078,3303.9,3303.4,0.60099672]
[1737041044416,0.60559,3303.7,3303.4,0.60099672]
[1737041045024,3.2078,3303.9,3303.5,0.60561]
[1737041045025,0.60558,3303.8,3303.5,0.60561]
[1737041045221,3.2078,3303.9,3303.8,0.60557]
[1737041045622,3.2078,3304.3,3303.7,2.82369165]
[1737041045822,3.2078,3304.3,3303.8,0.60556]
[1737041046121,0.60554,3304.0,3303.9,1.444]
[1737041046521,1.51384,3304.0,3303.0,2.82369165]
[1737041046822,3.2078,3303.5,3303.1,1.444]
[1737041047028,0.60567,3303.3,3303.1,1.444]
[1737041047522,3.2078,3303.5,3303.1,1.444]
[1737041047726,3.2078,3303.5,3303.1,4.26769165]
[1737041048314,3.2078,3304.0,3303.1,7.47549165]
[1737041048517,3.2078,3304.0,3303.6,2.82369165]
[1737041048719,3.2078,3304.0,3303.8,0.60555]
[1737041048927,3.2078,3304.0,3303.6,2.82369165]
[1737041049120,3.81334,3304.0,3303.8,0.60556]
[1737041049318,0.60553,3304.0,3303.9,1.444]
[1737041049830,0.60553,3304.0,3303.2,14.23619]
[1737041049831,0.60564,3303.4,3303.3,2.82369165]
[1737041050023,3.2078,3304.0,3303.3,4.26769165]
[1737041050226,3.2078,3304.0,3303.7,2.82369165]
[1737041050521,3.2078,3304.0,3303.9,0.60555]
[1737041050722,3.2078,3304.0,3303.7,2.82369165]
[1737041050922,3.2078,3304.0,3303.9,0.60555]
[1737041051620,3.81333,3304.0,3303.9,0.60555]
[1737041051817,3.81334,3304.0,3303.9,0.60555]
[1737041052015,3.2078,3304.4,3303.7,2.82369165]
[1737041052221,3.2078,3305.0,3304.3,2.82369165]
[1737041052420,3.81316,3305.0,3304.9,2.82369165]
[1737041053123,0.60544,3304.6,3304.5,2.82369165]
[1737041053626,0.60544,3304.5,3304.4,1.444]
[1737041055323,3.81324,3304.6,3304.4,1.444]
[1737041055628,3.2078,3304.6,3304.5,3.42913165]
[1737041055828,3.2078,3304.6,3304.5,4.26769165]
[1737041056723,3.2078,3305.3,3304.5,9.26769165]
[1737041057028,3.2078,3305.3,3305.1,2.82369165]
[1737041057229,3.8131,3305.3,3305.1,2.82369165]
[1737041057426,3.2078,3305.3,3305.1,2.82369165]
[1737041057625,3.81311,3305.3,3305.1,2.82369165]
[1737041057924,0.60531,3305.2,3305.1,2.82369165]
[1737041058129,3.2078,3305.3,3305.1,2.82369165]
[1737041058428,0.60526,3305.5,3305.1,6.63681165]
[1737041058732,0.6052,3305.8,3305.7,2.82369165]
[1737041058919,0.6052,3305.8,3305.7,4.26769165]
[1737041059428,0.6052,3305.8,3305.7,1.444]
[1737041059728,3.2078,3305.9,3305.0,1.9631]
[1737041059729,0.60533,3305.1,3305.0,1.9631]
[1737041060031,0.60533,3305.1,3305.0,6.23079165]
[1737041060225,0.60533,3305.1,3305.0,4.78679165]
[1737041060426,3.81313,3305.1,3305.0,2.82369165]
[1737041060631,3.81313,3305.1,3305.0,1.444]
[1737041061623,1.9807,3306.0,3305.0,1.444]
[1737041061624,3.2078,3305.5,3305.0,1.444]
[1737041061929,0.60527,3305.5,3305.3,0.60529]
[1737041062131,0.60523,3305.7,3305.1,4.81249165]
[1737041062331,3.813,3305.9,3305.6,2.82369165]
[1737041062532,0.60522,3305.7,3305.6,2.82369165]
[1737041062836,3.2078,3306.3,3305.6,3.42893165]
[1737041063037,3.2078,3306.3,3305.9,2.82369165]
[1737041063339,0.60515,3306.1,3306.0,1.444]
[1737041066331,3.2078,3306.3,3306.0,1.444]
[1737041066533,0.60515,3306.1,3306.0,1.444]
[1737041068036,3.2078,3306.3,3305.6,2.82369165]
[1737041068342,0.60522,3305.7,3305.6,2.82369165]
[1737041068547,0.60522,3305.7,3305.6,4.26469165]
[1737041069036,3.2078,3305.9,3305.6,2.82369165]
[1737041069342,3.813,3305.9,3305.7,2.04622]
[1737041069644,0.6052,3305.8,3305.7,1.441]
[1737041071140,3.2078,3305.9,3305.7,1.441]
[1737041071338,1.9266,3306.6,3306.2,0.60513]
[1737041071548,3.81285,3306.7,3306.5,3.42876165]
[1737041071751,1.9217,3307.3,3306.6,1.441]
[1737041072048,0.60495,3307.2,3307.0,3.42867165]
[1737041072249,0.60497,3307.1,3307.0,2.82369165]